[Event "GER-chT Youth Countries 2020"]
[Site "Berlin"]
[Date "2020.10.04"]
[Round "7"]
[White "Stelmaszyk, Nico"]
[Black "Yi, Danny"]
[Result "0-1"]
[ECO "C51"]
[WhiteElo "2301"]
[BlackElo "2266"]
[Annotator "ChessBase"]
[PlyCount "84"]
[EventDate "2020.09.30"]
[EventType "team-tourn"]
[EventRounds "7"]
[EventCountry "GER"]
[SourceTitle "playchess.com"]
[Source "ChessBase"]
[SourceQuality "1"]
[TimeControl "30/5400+30:0"]

1. e4 {[%emt 0:00:00]} e5 {[%emt 0:00:00]} 2. Nf3 {[%emt 0:00:00]} Nc6 {[%emt 0:00:00]} 3. Bc4 {[%emt 0:00:00]} Bc5 {[%emt 0:00:00]} 4. b4 {[%emt 0:00:00]} Bb6 {[%emt 0:01:42]} 5. a4 {[%emt 0:00:00]} a6 {[%emt 0:01:10]} 6. Nc3 {[%emt 0:00:00]} Nf6 {[%emt 0:01:36]} 7. Nd5 {[%emt 0:00:03]} d6 {[%emt 0:02:10]} 8. O-O {[%emt 0:01:41]} O-O {[%emt 0:02:31]} 9. Nxb6 {[%emt 0:04:05]} cxb6 {[%emt 0:00:08]} 10. d3 {[%emt 0:00:01]} Nxb4 {[%emt 0:01:59]} 11. Rb1 {[%emt 0:00:04]} Nc6 {[%emt 0:00:26]} 12. Be3 {[%emt 0:02:15]} Bg4 {[%emt 0:01:48]} 13. Rxb6 {[%emt 0:02:28]} Qd7 {[%emt 0:01:19]} 14. Qb1 {[%emt 0:15:43]} Bxf3 {[%emt 0:06:01]} 15. gxf3 {[%emt 0:00:25]} Rab8 {[%emt 0:14:26]} 16. Kh1 {[%emt 0:09:33]} d5 {[%emt 0:01:36]} 17. Bb3 {[%emt 0:13:14]} Qh3 {[%emt 0:04:10]} 18. Qd1 {[%emt 0:00:45]} dxe4 {[%emt 0:01:39]} 19. dxe4 {[%emt 0:00:14]} Rbd8 {[%emt 0:04:55]} 20. Bd5 {[%emt 0:10:02]} Nxd5 {[%emt 0:03:29]} 21. exd5 {[%emt 0:00:10]} Rxd5 {[%emt 0:00:18]} 22. Qe2 {[%emt 0:00:24]} Rd7 {[%emt 0:10:56]} 23. Rfb1 {[%emt 0:03:23]} Qh5 {[%emt 0:08:13]} 24. Rxb7 {[%emt 0:06:36]} Rxb7 {[%emt 0:00:43]} 25. Rxb7 {[%emt 0:00:06]} e4 {[%emt 0:00:33]} 26. Qxa6 {[%emt 0:01:01]} Qxf3+ {[%emt 0:02:38]} 27. Kg1 {[%emt 0:00:07]} Qg4+ {[%emt 0:02:06]} 28. Kh1 {[%emt 0:02:43]} Qd1+ {[%emt 0:02:17]} 29. Kg2 {[%emt 0:00:06]} Rd8 {[%emt 0:01:14]} 30. h3 {[%emt 0:01:02]} Ne5 {[%emt 0:07:18]} 31. Qf1 {[%emt 1:33:25]} Qf3+ {[%emt 1:33:48]} 32. Kh2 {[%emt 0:00:08]} Qf6 {[%emt 0:02:03]} 33. Rb1 {[%emt 0:02:49]} Nf3+ {[%emt 0:00:28]} 34. Kh1 {[%emt 0:00:24]} Qd6 {[%emt 0:00:49]} 35. Qg2 {[%emt 0:00:07]} Qd1+ {[%emt 0:00:22]} 36. Qf1 {[%emt 0:00:05]} Qxc2 {[%emt 0:00:16]} 37. Bb6 {[%emt 0:01:39]} Rc8 {[%emt 0:00:51]} 38. Ra1 {[%emt 0:00:38]} Qb2 {[%emt 0:02:16]} 39. Rd1 {[%emt 0:01:59]} Qxb6 {[%emt 0:00:18]} 40. Qb5 {[%emt 0:01:19]} Qxf2 {[%emt 0:00:54]} 41. Qb8 {[%emt 0:00:06]} Rxb8 {[%emt 0:00:11]} 42. Rc1 {[%emt 0:00:08]} Qh2# 0-1

[Event "GER-chT Youth Countries 2020"]
[Site "Berlin"]
[Date "2020.10.04"]
[Round "7"]
[White "Arndt, Magnus"]
[Black "Nothnagel, Marian Can"]
[Result "0-1"]
[ECO "A45"]
[WhiteElo "2298"]
[BlackElo "2355"]
[Annotator "ChessBase"]
[PlyCount "100"]
[EventDate "2020.09.30"]
[EventType "team-tourn"]
[EventRounds "7"]
[EventCountry "GER"]
[SourceTitle "playchess.com"]
[Source "ChessBase"]
[SourceQuality "1"]
[TimeControl "30/5400+30:0"]

1. d4 {[%emt 0:00:00]} Nf6 {[%emt 0:00:00]} 2. Bg5 {[%emt 0:00:00]} e6 {[%emt 0:00:00]} 3. e4 {[%emt 0:00:00]} h6 {[%emt 0:00:00]} 4. Bxf6 {[%emt 0:00:00]} Qxf6 {[%emt 0:00:00]} 5. c3 {[%emt 0:00:00]} d6 {[%emt 0:00:00]} 6. Bd3 {[%emt 0:00:22]} g6 {[%emt 0:00:00]} 7. Ne2 {[%emt 0:00:17]} e5 {[%emt 0:00:06]} 8. O-O {[%emt 0:01:56]} Bg7 {[%emt 0:00:32]} 9. f4 {[%emt 0:02:49]} Qe7 {[%emt 0:00:04]} 10. Nd2 {[%emt 0:06:54]} Nd7 {[%emt 0:00:49]} 11. f5 {[%emt 0:09:14]} O-O {[%emt 0:00:28]} 12. fxg6 {[%emt 0:06:49]} fxg6 {[%emt 0:00:21]} 13. Qb3+ {[%emt 0:00:11]} Kh7 {[%emt 0:00:07]} 14. Rxf8 {[%emt 0:13:03]} Bxf8 {[%emt 0:01:33]} 15. Rf1 {[%emt 0:02:08]} Nf6 {[%emt 0:02:46]} 16. Nf3 {[%emt 0:08:50]} c6 {[%emt 0:07:19]} 17. h3 {[%emt 0:05:37]} Bg7 {[%emt 0:26:51]} 18. Ng3 {[%emt 0:04:05]} Be6 {[%emt 0:06:58]} 19. Qc2 {[%emt 0:08:52]} Bd7 {[%emt 0:03:37]} 20. Qb3 {[%emt 0:03:48]} Be8 {[%emt 0:05:07]} 21. Kh2 {[%emt 0:01:11]} b6 {[%emt 0:04:02]} 22. a4 {[%emt 0:03:43]} Qc7 {[%emt 0:06:25]} 23. Qc4 {[%emt 0:08:48]} d5 {[%emt 0:11:07]} 24. Qb3 {[%emt 0:02:38]} dxe4 {[%emt 0:03:10]} 25. Nxe4 {[%emt 0:04:20]} exd4+ {[%emt 0:05:03]} 26. Kh1 {[%emt 0:00:13]} Nxe4 {[%emt 0:03:22]} 27. Bxe4 {[%emt 0:00:10]} dxc3 {[%emt 0:00:10]} 28. bxc3 {[%emt 0:00:57]} Rd8 {[%emt 0:04:09]} 29. Qe6 {[%emt 0:03:37]} Qd7 {[%emt 0:02:41]} 30. Qxd7 {[%emt 0:02:13]} Bxd7 {[%emt 0:00:06]} 31. Rd1 {[%emt 1:30:09]} Bf6 {[%emt 1:30:10]} 32. Rd6 {[%emt 0:00:17]} Kg7 {[%emt 0:00:09]} 33. Bxc6 {[%emt 0:01:04]} Bc8 {[%emt 0:01:25]} 34. Rxd8 {[%emt 0:00:25]} Bxd8 {[%emt 0:00:05]} 35. Kg1 {[%emt 0:00:19]} Be7 {[%emt 0:01:28]} 36. Kf2 {[%emt 0:00:47]} Bc5+ {[%emt 0:01:20]} 37. Nd4 {[%emt 0:01:25]} Kf6 {[%emt 0:00:46]} 38. Ke3 {[%emt 0:00:06]} Ke5 {[%emt 0:04:13]} 39. Kd3 {[%emt 0:00:10]} g5 {[%emt 0:01:21]} 40. Ne2 {[%emt 0:01:19]} Be6 {[%emt 0:01:07]} 41. Nd4 {[%emt 0:00:00]} Bf7 {[%emt 0:00:00]} 42. Be4 {[%emt 0:00:00]} a5 {[%emt 0:00:00]} 43. g3 {[%emt 0:00:00]} Ba2 {[%emt 0:00:00]} 44. Nf3+ {[%emt 0:00:00]} Kd6 {[%emt 0:00:00]} 45. Kc2 {[%emt 0:00:00]} Bf2 {[%emt 0:00:00]} 46. g4 {[%emt 0:00:00]} Bc4 {[%emt 0:00:00]} 47. Nd2 {[%emt 0:00:00]} Bf7 {[%emt 0:00:00]} 48. Nf3 {[%emt 0:00:00]} Bc5 {[%emt 0:00:00]} 49. Bb7 {[%emt 0:01:46]} Bg6+ {[%emt 0:00:00]} 50. Kb3 {[%emt 0:00:18]} Bd3 {[%emt 0:00:00]} 0-1

[Event "GER-chT Youth Countries 2020"]
[Site "Berlin"]
[Date "2020.10.04"]
[Round "7"]
[White "Pubantz, Jan"]
[Black "Richter, Nils"]
[Result "0-1"]
[ECO "A05"]
[WhiteElo "2295"]
[BlackElo "2307"]
[Annotator "ChessBase"]
[PlyCount "82"]
[EventDate "2020.09.30"]
[EventType "team-tourn"]
[EventRounds "7"]
[EventCountry "GER"]
[SourceTitle "playchess.com"]
[Source "ChessBase"]
[SourceQuality "1"]
[TimeControl "30/5400+30:0"]

1. Nf3 {[%emt 0:00:00]} Nf6 {[%emt 0:00:00]} 2. c4 e6 {[%emt 0:00:15]} 3. Nc3 {[%emt 0:01:43]} d5 {[%emt 0:02:37]} 4. e3 Be7 5. b3 {[%emt 0:01:20]} O-O {[%emt 0:00:38]} 6. Bb2 {[%emt 0:00:56]} c5 {[%emt 0:00:56]} 7. cxd5 {[%emt 0:00:59]} Nxd5 {[%emt 0:00:41]} 8. Qc2 {[%emt 0:09:26]} Nc6 {[%emt 0:04:04]} 9. Be2 {[%emt 0:02:23]} b6 {[%emt 0:00:50]} 10. O-O {[%emt 0:08:21]} Bb7 {[%emt 0:09:14]} 11. Rfd1 {[%emt 0:04:06]} Rc8 {[%emt 0:02:29]} 12. Rac1 {[%emt 0:10:13]} Bf6 {[%emt 0:04:58]} 13. Ne4 {[%emt 0:06:29]} Bxb2 {[%emt 0:02:43]} 14. Neg5 {[%emt 0:00:16]} Nf6 {[%emt 0:00:38]} 15. Qxb2 {[%emt 0:00:53]} h6 {[%emt 0:07:36]} 16. Nh3 {[%emt 0:07:55]} Qe7 17. d4 {[%emt 0:00:13]} cxd4 {[%emt 0:03:53]} 18. Nxd4 {[%emt 0:02:45]} Nxd4 {[%emt 0:06:37]} 19. Qxd4 {[%emt 0:00:30]} Qa3 {[%emt 0:00:30]} 20. Rxc8 {[%emt 0:04:36]} Rxc8 {[%emt 0:16:45]} 21. Qd2 {[%emt 0:21:05]} Be4 {[%emt 0:01:45]} 22. f3 {[%emt 0:06:12]} Bf5 {[%emt 0:07:49]} 23. g4 {[%emt 0:00:51]} Bg6 {[%emt 0:07:24]} 24. Nf4 Kh7 {[%emt 0:00:02]} 25. Nxg6 {[%emt 0:01:28]} fxg6 {[%emt 0:01:14]} 26. Bd3 {[%emt 0:03:46]} e5 {[%emt 0:01:47]} 27. h3 {[%emt 0:00:51]} Qc5 {[%emt 0:07:32]} 28. Kg2 e4 29. Bxe4 {[%emt 0:02:56]} Nxe4 {[%emt 0:00:36]} 30. fxe4 {[%emt 0:00:04]} Qe5 {[%emt 0:00:26]} 31. Qd3 {[%emt 1:31:27]} Rc3 32. Qe2 {[%emt 0:02:37]} Qxe4+ {[%emt 1:31:28]} 33. Qf3 Rc2+ {[%emt 0:07:40]} 34. Kg3 {[%emt 0:00:13]} Qe5+ {[%emt 0:00:06]} 35. Qf4 {[%emt 0:00:08]} Qb2 36. h4 {[%emt 0:02:05]} Rg2+ {[%emt 0:00:25]} 37. Kh3 {[%emt 0:00:02]} Rf2 {[%emt 0:00:11]} 38. Qg3 {[%emt 0:01:29]} Qe2 {[%emt 0:00:14]} 39. h5 {[%emt 0:00:38]} Rf3 {[%emt 0:00:25]} 40. hxg6+ {[%emt 0:00:00]} Kxg6 {[%emt 0:00:00]} 41. Rd6+ Kh7 0-1

[Event "GER-chT Youth Countries 2020"]
[Site "Berlin"]
[Date "2020.10.04"]
[Round "7"]
[White "Kuznecovs, Nikita"]
[Black "Milare, Tyron"]
[Result "1-0"]
[ECO "A05"]
[WhiteElo "2276"]
[BlackElo "2176"]
[Annotator "ChessBase"]
[PlyCount "147"]
[EventDate "2020.09.30"]
[EventType "team-tourn"]
[EventRounds "7"]
[EventCountry "GER"]
[SourceTitle "playchess.com"]
[Source "ChessBase"]
[SourceQuality "1"]
[TimeControl "30/5400+30:0"]

1. Nf3 {[%emt 0:00:00]} Nf6 {[%emt 0:00:01]} 2. c4 {[%emt 0:00:00]} e6 {[%emt 0:00:14]} 3. Nc3 {[%emt 0:00:09]} d5 {[%emt 0:00:32]} 4. e3 {[%emt 0:00:06]} Be7 {[%emt 0:00:21]} 5. Be2 {[%emt 0:00:16]} dxc4 {[%emt 0:00:46]} 6. Bxc4 {[%emt 0:00:06]} O-O {[%emt 0:00:48]} 7. O-O {[%emt 0:00:09]} b6 {[%emt 0:01:29]} 8. d4 {[%emt 0:13:50]} Bb7 {[%emt 0:00:48]} 9. Qe2 {[%emt 0:00:08]} c5 {[%emt 0:00:35]} 10. Rd1 {[%emt 0:00:09]} Qc8 {[%emt 0:02:03]} 11. e4 {[%emt 0:02:29]} cxd4 {[%emt 0:05:43]} 12. Nxd4 {[%emt 0:00:20]} Nc6 {[%emt 0:02:52]} 13. Nf3 {[%emt 0:10:24]} h6 {[%emt 0:06:37]} 14. Bf4 {[%emt 0:22:39]} a6 {[%emt 0:17:11]} 15. Na4 {[%emt 0:08:46]} Bd8 {[%emt 0:01:36]} 16. Bd3 {[%emt 0:05:22]} Nd7 {[%emt 0:02:01]} 17. Rac1 {[%emt 0:05:40]} b5 {[%emt 0:04:20]} 18. Nc3 {[%emt 0:00:26]} Bb6 {[%emt 0:01:07]} 19. Bb1 {[%emt 0:00:36]} Rd8 {[%emt 0:02:24]} 20. Nd5 {[%emt 0:02:07]} Bc5 {[%emt 0:07:01]} 21. Ne3 {[%emt 0:10:07]} Bxe3 {[%emt 0:21:03]} 22. Qxe3 {[%emt 0:00:20]} e5 {[%emt 0:00:18]} 23. Bg3 {[%emt 0:01:18]} Qb8 {[%emt 0:00:38]} 24. Bh4 {[%emt 0:01:35]} f6 {[%emt 0:00:07]} 25. Qb3+ {[%emt 0:00:04]} Kh8 {[%emt 0:02:32]} 26. Qf7 {[%emt 0:02:46]} Nd4 {[%emt 0:02:31]} 27. Nxd4 {[%emt 0:00:27]} exd4 {[%emt 0:00:05]} 28. Rxd4 {[%emt 0:00:26]} Qf4 {[%emt 0:00:16]} 29. Rcd1 {[%emt 0:00:45]} Qxh4 {[%emt 0:02:13]} 30. Rxd7 {[%emt 0:00:33]} Rxd7 {[%emt 0:00:06]} 31. Rxd7 {[%emt 1:30:17]} Qg5 {[%emt 1:30:07]} 32. g3 {[%emt 0:09:43]} Qc1+ {[%emt 0:02:06]} 33. Kg2 {[%emt 0:00:08]} Rg8 {[%emt 0:00:08]} 34. Bd3 {[%emt 0:01:01]} Bc8 {[%emt 0:00:59]} 35. Re7 {[%emt 0:02:37]} Qd1 {[%emt 0:01:19]} 36. Qd5 {[%emt 0:00:55]} Qg4 {[%emt 0:05:35]} 37. Bc2 {[%emt 0:00:52]} Qh3+ {[%emt 0:01:59]} 38. Kg1 {[%emt 0:00:08]} Bg4 {[%emt 0:00:18]} 39. e5 {[%emt 0:00:12]} Bf5 {[%emt 0:02:54]} 40. Bd1 {[%emt 0:00:53]} fxe5 {[%emt 0:01:47]} 41. Qxe5 {[%emt 0:00:00]} Bd3 {[%emt 0:00:00]} 42. Qe1 {[%emt 0:00:00]} Rf8 {[%emt 0:00:00]} 43. f4 {[%emt 0:00:00]} Qf5 {[%emt 0:00:00]} 44. Qc3 {[%emt 0:00:00]} Qf6 {[%emt 0:00:00]} 45. Qxf6 {[%emt 0:00:00]} Rxf6 {[%emt 0:00:00]} 46. Kf2 {[%emt 0:00:00]} Rd6 {[%emt 0:00:00]} 47. Ke3 {[%emt 0:00:00]} Bf5 {[%emt 0:00:00]} 48. Be2 {[%emt 0:00:00]} Kh7 {[%emt 0:00:00]} 49. g4 {[%emt 0:00:00]} Bb1 {[%emt 0:00:00]} 50. a3 {[%emt 0:00:00]} Kg6 {[%emt 0:00:00]} 51. Rc7 {[%emt 0:00:00]} Kf6 {[%emt 0:00:00]} 52. h4 {[%emt 0:00:00]} g5 {[%emt 0:00:00]} 53. fxg5+ {[%emt 0:00:00]} hxg5 {[%emt 0:00:00]} 54. h5 {[%emt 0:00:00]} Re6+ {[%emt 0:00:00]} 55. Kf3 {[%emt 0:00:00]} Be4+ {[%emt 0:00:00]} 56. Kg3 {[%emt 0:00:00]} Bb1 {[%emt 0:00:00]} 57. Bf3 {[%emt 0:00:00]} Rd6 {[%emt 0:00:00]} 58. Rc6 {[%emt 0:00:37]} Rxc6 {[%emt 0:00:00]} 59. Bxc6 {[%emt 0:00:52]} Bc2 {[%emt 0:00:00]} 60. Kf2 {[%emt 0:01:02]} Bd1 {[%emt 0:00:00]} 61. Bf3 {[%emt 1:30:07]} Bc2 {[%emt 1:30:09]} 62. Ke3 {[%emt 0:00:09]} Ke5 {[%emt 0:00:08]} 63. Be2 {[%emt 0:00:10]} Bb3 {[%emt 0:00:49]} 64. Bd3 {[%emt 0:01:17]} Be6 {[%emt 0:00:37]} 65. h6 {[%emt 0:00:13]} Kf6 {[%emt 0:00:07]} 66. Bf5 {[%emt 0:00:06]} Bc4 {[%emt 0:01:04]} 67. b4 {[%emt 0:00:35]} Kf7 {[%emt 0:00:56]} 68. Kd4 {[%emt 0:00:07]} Kf6 {[%emt 0:00:05]} 69. Kc5 {[%emt 0:00:06]} Be2 {[%emt 0:00:04]} 70. Kb6 {[%emt 0:00:07]} Kf7 {[%emt 0:00:05]} 71. Kxa6 {[%emt 0:00:07]} Kf6 {[%emt 0:00:09]} 72. Ka5 {[%emt 0:00:05]} Bf1 {[%emt 0:01:42]} 73. a4 {[%emt 0:00:10]} bxa4 74. Kxa4 {[%emt 0:00:03]} 1-0

[Event "GER-chT Youth Countries 2020"]
[Site "Berlin"]
[Date "2020.10.04"]
[Round "7"]
[White "Koelle, Tobias"]
[Black "Knuedel, Torben"]
[Result "0-1"]
[ECO "D37"]
[WhiteElo "2275"]
[BlackElo "2211"]
[Annotator "ChessBase"]
[PlyCount "98"]
[EventDate "2020.09.30"]
[EventType "team-tourn"]
[EventRounds "7"]
[EventCountry "GER"]
[SourceTitle "playchess.com"]
[Source "ChessBase"]
[SourceQuality "1"]
[TimeControl "30/5400+30:0"]

1. d4 {[%emt 0:00:00]} Nf6 {[%emt 0:00:00]} 2. c4 {[%emt 0:00:00]} e6 {[%emt 0:00:00]} 3. Nf3 {[%emt 0:00:00]} d5 {[%emt 0:00:00]} 4. Nc3 {[%emt 0:00:00]} dxc4 {[%emt 0:00:09]} 5. e4 {[%emt 0:00:00]} b5 {[%emt 0:00:14]} 6. e5 {[%emt 0:00:13]} Nd5 {[%emt 0:00:09]} 7. Nxb5 {[%emt 0:00:04]} Nb6 {[%emt 0:00:10]} 8. Be2 {[%emt 0:00:10]} Nc6 {[%emt 0:01:30]} 9. O-O {[%emt 0:00:04]} Be7 10. Qd2 {[%emt 0:00:14]} Bb7 {[%emt 0:01:23]} 11. Qf4 {[%emt 0:11:06]} Qd7 {[%emt 0:27:46]} 12. a4 {[%emt 0:09:02]} g5 13. Nxg5 {[%emt 0:00:09]} Bxg5 {[%emt 0:02:05]} 14. Qxg5 {[%emt 0:09:57]} Ne7 15. Bf3 {[%emt 0:00:04]} Bxf3 {[%emt 0:14:31]} 16. Qf6 {[%emt 0:05:03]} Qc6 17. Qxf3 {[%emt 0:00:04]} Qxf3 {[%emt 0:04:16]} 18. gxf3 {[%emt 0:00:06]} Rg8+ {[%emt 0:01:35]} 19. Kh1 {[%emt 0:04:46]} Kd7 {[%emt 0:02:35]} 20. Be3 {[%emt 0:05:24]} Nf5 {[%emt 0:08:22]} 21. Nc3 Nd5 {[%emt 0:02:29]} 22. Ne4 {[%emt 0:12:21]} Rab8 {[%emt 0:05:54]} 23. Rab1 Nh4 {[%emt 0:01:27]} 24. f4 {[%emt 0:14:29]} Nf3 {[%emt 0:05:42]} 25. Rfc1 {[%emt 0:09:48]} Rg6 26. Nd2 {[%emt 0:06:39]} Nxh2 {[%emt 0:09:07]} 27. Kxh2 {[%emt 0:01:41]} Nxe3 28. Ne4 Ng4+ {[%emt 0:07:52]} 29. Kg2 {[%emt 0:01:37]} Nxe5+ {[%emt 0:00:27]} 30. Kf1 {[%emt 0:00:07]} Nf3 {[%emt 0:01:01]} 31. Rd1 {[%emt 1:31:34]} f5 {[%emt 1:30:42]} 32. Nc5+ {[%emt 0:00:57]} Kd6 33. Ke2 {[%emt 0:01:06]} Nxd4+ {[%emt 0:00:55]} 34. Rxd4+ {[%emt 0:00:01]} Kxc5 {[%emt 0:00:04]} 35. Rd7 {[%emt 0:00:06]} c6 {[%emt 0:01:07]} 36. Rxa7 {[%emt 0:00:12]} c3 37. Rxh7 {[%emt 0:03:10]} cxb2 {[%emt 0:02:49]} 38. a5 {[%emt 0:01:13]} Rgg8 {[%emt 0:00:54]} 39. Kd2 {[%emt 0:00:23]} Kc4 {[%emt 0:00:43]} 40. a6 {[%emt 0:02:10]} Kb3 41. Rh3+ {[%emt 0:00:00]} Ka2 {[%emt 0:00:00]} 42. Kc2 {[%emt 0:00:00]} Rg2 {[%emt 0:00:00]} 43. Rf3 Rb5 {[%emt 0:00:00]} 44. a7 {[%emt 0:00:00]} Rc5+ {[%emt 0:00:00]} 45. Rc3 Rxf2+ {[%emt 0:00:00]} 46. Kd3 {[%emt 0:00:00]} Ra5 {[%emt 0:00:00]} 47. Rxb2+ {[%emt 0:00:00]} Kxb2 {[%emt 0:00:00]} 48. Rxc6 {[%emt 0:00:00]} Ra3+ {[%emt 0:00:00]} 49. Kd4 {[%emt 0:00:00]} Rxf4+ {[%emt 0:00:00]} 0-1

[Event "GER-chT Youth Countries 2020"]
[Site "Berlin"]
[Date "2020.10.04"]
[Round "7"]
[White "Schneider, Jana"]
[Black "Ermitsch, Magnus"]
[Result "1/2-1/2"]
[ECO "C42"]
[WhiteElo "2270"]
[BlackElo "2025"]
[Annotator "ChessBase"]
[PlyCount "67"]
[EventDate "2020.09.30"]
[EventType "team-tourn"]
[EventRounds "7"]
[EventCountry "GER"]
[SourceTitle "playchess.com"]
[Source "ChessBase"]
[SourceQuality "1"]
[TimeControl "30/5400+30:0"]

1. e4 {[%emt 0:00:00]} e5 {[%emt 0:00:48]} 2. Nf3 {[%emt 0:00:00]} Nf6 {[%emt 0:01:00]} 3. Nxe5 {[%emt 0:09:03]} d6 {[%emt 0:00:51]} 4. Nf3 {[%emt 0:00:11]} Nxe4 {[%emt 0:00:56]} 5. Bd3 {[%emt 0:01:09]} Nf6 {[%emt 0:02:32]} 6. O-O {[%emt 0:00:22]} Be7 {[%emt 0:01:05]} 7. c3 {[%emt 0:00:22]} Bg4 {[%emt 0:01:32]} 8. Bc2 {[%emt 0:00:44]} O-O {[%emt 0:00:46]} 9. d4 {[%emt 0:00:47]} Re8 {[%emt 0:01:32]} 10. Bg5 {[%emt 0:07:18]} Bh5 {[%emt 0:01:59]} 11. Nbd2 {[%emt 0:01:51]} d5 {[%emt 0:02:49]} 12. Re1 {[%emt 0:04:57]} Nbd7 {[%emt 0:01:26]} 13. Nf1 {[%emt 0:03:45]} Bg6 {[%emt 0:05:19]} 14. Ng3 {[%emt 0:03:06]} Bf8 {[%emt 0:25:23]} 15. Nf5 {[%emt 0:15:55]} c6 {[%emt 0:02:46]} 16. N3h4 {[%emt 0:07:18]} Qb6 {[%emt 0:02:16]} 17. Rxe8 {[%emt 0:11:35]} Rxe8 {[%emt 0:00:52]} 18. Rb1 {[%emt 0:03:02]} Ne4 {[%emt 0:02:16]} 19. Bf4 {[%emt 0:02:45]} Re6 {[%emt 0:21:29]} 20. Bd3 {[%emt 0:09:11]} a5 {[%emt 0:06:41]} 21. Qc2 {[%emt 0:00:45]} Nef6 {[%emt 0:02:32]} 22. Kf1 {[%emt 0:03:26]} Ne4 {[%emt 0:00:40]} 23. Re1 {[%emt 0:00:13]} Rf6 {[%emt 0:00:30]} 24. Bxe4 {[%emt 0:04:06]} dxe4 {[%emt 0:00:11]} 25. g4 {[%emt 0:00:29]} Re6 {[%emt 0:04:03]} 26. Rxe4 {[%emt 0:00:31]} Nf6 {[%emt 0:06:38]} 27. Rxe6 {[%emt 0:00:11]} fxe6 {[%emt 0:00:08]} 28. Nxg6 {[%emt 0:00:07]} hxg6 {[%emt 0:01:19]} 29. Nh4 {[%emt 0:05:10]} g5 {[%emt 0:00:32]} 30. Be5 {[%emt 0:03:39]} gxh4 {[%emt 0:00:26]} 31. Bxf6 {[%emt 1:30:06]} gxf6 {[%emt 1:30:17]} 32. Qg6+ {[%emt 0:00:04]} Bg7 {[%emt 0:03:35]} 33. Qe8+ {[%emt 0:00:07]} Kh7 {[%emt 0:00:27]} 34. Qh5+ {[%emt 0:00:09]} 1/2-1/2

[Event "GER-chT Youth Countries 2020"]
[Site "Berlin"]
[Date "2020.10.04"]
[Round "7"]
[White "Niermann, Tristan"]
[Black "Pallas, Sebastian"]
[Result "1-0"]
[ECO "A45"]
[WhiteElo "2262"]
[BlackElo "2315"]
[Annotator "ChessBase"]
[PlyCount "109"]
[EventDate "2020.09.30"]
[EventType "team-tourn"]
[EventRounds "7"]
[EventCountry "GER"]
[SourceTitle "playchess.com"]
[Source "ChessBase"]
[SourceQuality "1"]
[TimeControl "30/5400+30:0"]

1. d4 {[%emt 0:00:00]} Nf6 {[%emt 0:00:01]} 2. Bf4 {[%emt 0:00:00]} g6 {[%emt 0:01:35]} 3. Nc3 {[%emt 0:00:06]} d5 {[%emt 0:02:14]} 4. Qd2 {[%emt 0:00:18]} Bf5 {[%emt 0:10:04]} 5. O-O-O {[%emt 0:04:55]} c6 {[%emt 0:03:14]} 6. f3 {[%emt 0:06:29]} h5 {[%emt 0:02:26]} 7. Qe1 {[%emt 0:04:43]} Bg7 {[%emt 0:02:12]} 8. e4 {[%emt 0:03:07]} Be6 {[%emt 0:00:07]} 9. Nh3 {[%emt 0:08:53]} dxe4 {[%emt 0:18:30]} 10. Ng5 {[%emt 0:12:51]} O-O {[%emt 0:05:34]} 11. fxe4 {[%emt 0:16:05]} Bg4 {[%emt 0:06:33]} 12. Rd2 {[%emt 0:02:52]} Qa5 {[%emt 0:05:06]} 13. h3 {[%emt 0:03:28]} Be6 {[%emt 0:05:53]} 14. Nxe6 {[%emt 0:06:03]} fxe6 {[%emt 0:01:00]} 15. Qg3 {[%emt 0:08:11]} h4 {[%emt 0:13:29]} 16. Qxh4 {[%emt 0:02:30]} Qh5 {[%emt 0:04:06]} 17. Qg3 {[%emt 0:02:08]} Qh7 {[%emt 0:01:56]} 18. Bg5 {[%emt 0:04:05]} Nbd7 {[%emt 0:03:26]} 19. Bc4 {[%emt 0:01:20]} Kh8 {[%emt 0:00:38]} 20. Bxe6 {[%emt 0:01:02]} c5 {[%emt 0:01:18]} 21. e5 {[%emt 0:01:45]} Nh5 {[%emt 0:00:18]} 22. Qe3 {[%emt 0:00:38]} cxd4 {[%emt 0:00:29]} 23. Rxd4 {[%emt 0:00:56]} Nxe5 {[%emt 0:01:17]} 24. Rh4 {[%emt 0:01:51]} Rf6 {[%emt 0:04:38]} 25. Bxf6 {[%emt 0:00:56]} exf6 {[%emt 0:00:50]} 26. Kb1 {[%emt 0:00:49]} Re8 {[%emt 0:00:11]} 27. Bb3 {[%emt 0:01:24]} f5 {[%emt 0:01:31]} 28. Nd5 {[%emt 0:01:22]} f4 {[%emt 0:03:17]} 29. Qe4 {[%emt 0:00:43]} g5 {[%emt 0:00:43]} 30. Qxh7+ {[%emt 0:04:27]} Kxh7 {[%emt 0:00:03]} 31. Rxh5+ {[%emt 1:30:35]} Kg6 {[%emt 1:30:01]} 32. Nc7 {[%emt 0:00:27]} Re7 {[%emt 0:00:28]} 33. Rxg5+ {[%emt 0:00:40]} Kxg5 {[%emt 0:00:05]} 34. Ne6+ {[%emt 0:00:08]} Kf5 {[%emt 0:00:28]} 35. Nxg7+ {[%emt 0:00:16]} Rxg7 {[%emt 0:00:04]} 36. Bd5 {[%emt 0:00:11]} b5 {[%emt 0:01:56]} 37. Re1 {[%emt 0:00:35]} Nc4 {[%emt 0:01:13]} 38. Bxc4 {[%emt 0:00:45]} bxc4 {[%emt 0:00:04]} 39. Re2 {[%emt 0:00:35]} f3 {[%emt 0:01:41]} 40. Rf2 {[%emt 0:00:12]} Rxg2 {[%emt 0:00:03]} 41. Rxf3+ {[%emt 0:00:00]} Ke4 {[%emt 0:00:00]} 42. Rf1 {[%emt 0:00:00]} Rh2 {[%emt 0:00:00]} 43. b4 {[%emt 0:00:00]} c3 {[%emt 0:00:00]} 44. Rd1 {[%emt 0:00:00]} Rd2 {[%emt 0:00:00]} 45. Rh1 {[%emt 0:00:00]} a5 {[%emt 0:00:00]} 46. bxa5 {[%emt 0:00:00]} Rd5 {[%emt 0:00:00]} 47. a6 {[%emt 0:00:00]} Rb5+ {[%emt 0:00:00]} 48. Ka1 {[%emt 0:00:00]} Ke3 {[%emt 0:00:00]} 49. h4 {[%emt 0:00:00]} Kd2 {[%emt 0:00:00]} 50. h5 {[%emt 0:00:00]} Kxc2 {[%emt 0:00:00]} 51. a7 {[%emt 0:00:00]} Ra5 {[%emt 0:00:00]} 52. h6 {[%emt 0:00:00]} Rxa7 {[%emt 0:00:00]} 53. h7 {[%emt 0:00:00]} Rxh7 {[%emt 0:00:00]} 54. Rxh7 {[%emt 0:00:00]} Kd2 {[%emt 0:00:00]} 55. Rc7 {[%emt 0:00:00]} 1-0